fUSD/lending_fUSD_20250223
["ID","MTS","AMOUNT","RATE_DAILY","PERIOD"]
[354167263,1740318640099,-156.19234524,0.00016263,2]
[354167264,1740318640108,-63759.32173114,0.00016905,14]
[354167265,1740318640118,-152.579377,0.00016905,2]
[354167266,1740318640128,-151.0,0.00016905,2]
[354167267,1740318640137,-201.5306,0.00016905,2]
[354167268,1740318640147,-151.0,0.00016905,2]
[354167269,1740318640156,-375.046476,0.00016905,2]
[354167270,1740318640166,-375.046476,0.00016905,2]
[354167271,1740318640175,-151.0,0.00016905,2]
[354167272,1740318640185,-151.0,0.00016905,2]
[354167273,1740318640194,-152.434374,0.00016905,2]
[354167274,1740318640203,-152.434374,0.00016905,2]
[354167275,1740318640213,-658.20222,0.00016905,2]
[354167276,1740318640222,-272.216596,0.00016905,2]
[354167277,1740318640231,-272.216596,0.00016905,2]
[354167278,1740318640240,-411.670038,0.00016905,2]
[354167279,1740318640250,-411.670038,0.00016905,2]
[354167280,1740318640260,-151.0,0.00016905,2]
[354167282,1740318640269,-151.0,0.00016905,2]
[354167284,1740318640279,-151.0,0.00016905,2]
[354167286,1740318640289,-151.0,0.00016909,2]
[354167288,1740318640299,-151.16879,0.00016909,2]
[354167290,1740318640308,-151.0,0.00016909,2]
[354167292,1740318640317,-151.0,0.00016909,2]
[354167294,1740318640327,-151.0,0.00016909,2]
[354167295,1740318640336,-151.0,0.00016909,2]
[354167297,1740318640345,-151.0,0.00016919,2]
[354167299,1740318640354,-151.0,0.0001692,2]
[354167301,1740318640363,-225.132586,0.0001692,2]
[354167303,1740318640373,-225.132586,0.0001692,2]
[354167305,1740318640382,-151.0,0.0001692,2]
[354167307,1740318640391,-151.0,0.0001692,2]
[354167309,1740318640400,-151.0,0.0001692,2]
[354167311,1740318640409,-151.0,0.0001692,2]
[354167313,1740318640418,-195.8746,0.0001692,2]
[354167315,1740318640427,-195.8746,0.0001692,2]
[354167317,1740318640436,-186.769486,0.0001692,2]
[354167319,1740318640445,-186.769486,0.0001692,2]
[354167321,1740318640454,-350.270036,0.0001692,2]
[354167323,1740318640463,-350.270036,0.0001692,2]
[354167325,1740318640474,-151.0,0.00016929,2]
[354167327,1740318640487,-227.129629,0.00016938,2]
[354167329,1740318640496,-150.0,0.00016952,2]
[354167331,1740318640506,-150.0,0.00016964,2]
[354167333,1740318640515,-150.0,0.00016974,2]
[354167335,1740318640525,-150.0,0.0001698,2]
[354167337,1740318640535,-830.0,0.00017,30]
[354167339,1740318640544,-150.0,0.0001703,2]
[354167341,1740318640554,-150.0,0.00017055,2]
[354167343,1740318640563,-150.0,0.00017055,2]
[354167345,1740318640571,-246.92387706,0.00017067,2]
[354167347,1740318640580,-150.0,0.00017078,2]
[354167349,1740318640590,-298.59493,0.00017088,7]
[354167351,1740318640599,-150.0,0.00017106,2]
[354167353,1740318640608,-151.0,0.00017109,2]
[354167355,1740318640617,-151.0,0.00017109,2]
[354167357,1740318640627,-233.31,0.00017115,2]
[354167359,1740318640636,-150.0,0.00017148,2]
[354167361,1740318640645,-150.0,0.00017158,2]
[354167377,1740318640654,-15761.1704955,0.00017183,3]
[354167379,1740318640798,-272.216596,0.00017202,2]
[354167381,1740318640807,-272.216596,0.00017202,2]
[354167383,1740318640816,-411.670038,0.00017202,2]
[354167385,1740318640825,-411.670038,0.00017202,2]
[354167387,1740318640835,-151.0,0.00017203,2]
[354167389,1740318640844,-195.8746,0.00017203,2]
[354167391,1740318640853,-195.8746,0.00017203,2]
[354167393,1740318640863,-150.0,0.0001726,2]
[354167395,1740318640872,-150.0,0.0001726,2]
[354167397,1740318640882,-298.59493,0.00017288,7]
[354167399,1740318640892,-15761.1704955,0.00017293,3]
[354167401,1740318640901,-150.0,0.00017299,2]
[354167403,1740318640910,-3600.0,0.000173,6]
[354167405,1740318640919,-999.0,0.00017302,2]
[354167407,1740318640928,-305.57979002,0.00017303,2]
[354167409,1740318640937,-151.0,0.00017303,2]
[354167410,1740318640947,-151.0,0.00017303,2]
[354167411,1740318640956,-151.0,0.00017303,2]
[354167412,1740318640966,-186.769486,0.00017303,2]
[354167413,1740318640975,-186.769486,0.00017303,2]
[354167414,1740318640986,-350.270036,0.00017303,2]
[354167415,1740318640996,-350.270036,0.00017303,2]
[354167416,1740318641006,-150.0,0.00017316,2]
[354167417,1740318641016,-1000.0,0.00017331,2]
[354167418,1740318641027,-246.92387706,0.00017333,2]
[354167419,1740318641037,-150.0,0.00017363,2]
[354167420,1740318641047,-158.60769944,0.00017374,2]
[354167421,1740318641056,-151.0,0.00017389,2]
[354167422,1740318641065,-225.132586,0.00017389,2]
[354167423,1740318641074,-225.132586,0.00017389,2]
[354167424,1740318641083,-225.132586,0.0001739,2]
[354167425,1740318641093,-225.132586,0.0001739,2]
[354167426,1740318641103,-208.518356,0.0001739,2]
[354167427,1740318641112,-151.0,0.0001739,2]
[354167428,1740318641121,-151.0,0.0001739,2]
[354167429,1740318641131,-171.573992,0.0001739,2]
[354167430,1740318641141,-195.8746,0.0001739,2]
[354167431,1740318641151,-195.874606,0.0001739,2]
[354167432,1740318641161,-186.769486,0.0001739,2]
[354167433,1740318641171,-186.769485,0.0001739,2]
[354167434,1740318641180,-350.270036,0.0001739,2]
[354167435,1740318641190,-350.270029,0.0001739,2]
[354167436,1740318641200,-8784.09,0.000174,2]
[354167437,1740318641209,-2617.85312976,0.000174,2]
[354167438,1740318641219,-4500.0,0.000174,6]
[354167439,1740318641228,-29802.35063041,0.00017408,3]
[354167440,1740318641272,-1201.42424358,0.00017408,3]
[354167446,1740318642714,-493.94,0.00016007,2]
[354167447,1740318642723,-2498.58031736,0.00016544,2]
[354167448,1740318642733,-55690.87968264,0.00017408,3]
[354167449,1740318642771,-2599.444995,0.00017408,3]
[354167450,1740318642830,-3851.88067642,0.00017408,3]
[354167451,1740318642841,-7806.74460825,0.00017408,3]
[354167452,1740318642853,-3103.3582,0.00017408,3]
[354167453,1740318642863,-874.30802895,0.00017408,3]
[354167454,1740318642874,-1205.50888672,0.00017408,3]
[354167461,1740318645539,-156.19234524,0.00016499,2]
[354167462,1740318645549,-1134.10433119,0.00017408,3]
[354167463,1740318645653,-1340.95642857,0.00017408,3]
[354167464,1740318645769,-39538.03133,0.00017408,3]
[354167465,1740318645830,-4933.7,0.00017408,3]
[354167466,1740318645842,-373.54324021,0.00017408,3]
[354167467,1740318645892,-309.415,0.00017408,3]
[354167469,1740318737881,289.0,9.513e-05,2]
[354167471,1740318787521,680.65471766,0.00020352,120]
[354167472,1740318787815,680.65471766,0.00020352,120]
[354167473,1740318788130,680.65471766,0.00020352,120]
[354167474,1740318788464,680.65471766,0.00020352,120]
[354167475,1740318852843,181.96,8.767e-05,2]
[354167490,1740319831870,-550.0,0.0001,2]
[354167491,1740319831880,-589.77,0.00014761,2]
[354167492,1740319831890,-1000.0,0.00015257,2]
[354167493,1740319831903,-491.64,0.00015258,2]
[354167494,1740319831913,-641.45995871,0.00015405,2]
[354167495,1740319831923,-368.19460071,0.00015405,2]
[354167496,1740319831934,-181.96,0.00015516,2]
[354167497,1740319831943,-497.64,0.00015706,2]
[354167498,1740319831953,-151.27,0.00015706,2]
[354167499,1740319831963,-152.69,0.00016206,2]
[354167500,1740319831973,-150.0,0.00016237,2]
[354167501,1740319831984,-748.0,0.000164,2]
[354167502,1740319831993,-190.69,0.00016521,2]
[354167503,1740319832002,-4393.91508058,0.00016522,2]
[354167504,1740319832027,-496.63191942,0.00016522,2]
[354167505,1740319832037,-154.65,0.00016614,2]
[354167506,1740319832047,-1000.0,0.00016623,2]
[354167507,1740319832056,-150.0,0.00016644,2]
[354167508,1740319832066,-150.0,0.00016644,2]
[354167509,1740319832076,-150.0,0.00016644,2]
[354167510,1740319832085,-150.0,0.00016644,2]
[354167511,1740319832094,-250.0,0.00016658,2]
[354167512,1740319832104,-6523.71688058,0.00016699,2]
[354167513,1740319832120,-11836.53311942,0.00016699,2]
[354167514,1740319832130,-150.0,0.00016812,2]
[354167515,1740319832140,-2693.1036445,0.00016825,2]
[354167516,1740319832150,-1366.224,0.00016905,2]
[354167517,1740319832158,-150.0,0.00016952,2]
[354167518,1740319832168,-150.0,0.0001698,2]
[354167519,1740319832177,-300.0,0.00017,6]
[354167520,1740319832186,-150.0,0.00017014,2]
[354167521,1740319832196,-589.77,0.00017024,2]
[354167522,1740319832205,-200.0,0.00017031,2]
[354167523,1740319832214,-168.454,0.00017041,2]
[354167524,1740319832224,-150.0,0.00017041,2]
[354167525,1740319832234,-1880.01,0.00017041,2]
[354167526,1740319832243,-150.0,0.00017041,2]
[354167527,1740319832253,-639.0,0.00017041,2]
[354167528,1740319832262,-569.0,0.00017041,2]
[354167529,1740319832272,-1788.0,0.00017041,2]
[354167530,1740319832281,-1265.0,0.00017041,2]
[354167531,1740319832291,-784.0,0.00017041,2]
[354167532,1740319832301,-907.0,0.00017041,2]
[354167534,1740319832310,-1424.0,0.00017041,2]
[354167536,1740319832319,-540.0,0.00017041,2]
[354167538,1740319832329,-4032.0,0.00017041,2]
[354167540,1740319832338,-3916.0,0.00017041,2]
[354167542,1740319832348,-1009.0,0.00017041,2]
[354167544,1740319832357,-150.0,0.00017041,2]
[354167546,1740319832367,-174.7749749,0.00017052,2]
[354167548,1740319832378,-700.0,0.000171,6]
[354167550,1740319832387,-150.0,0.00017148,2]
[354167551,1740319832396,-1000.0,0.000172,6]
[354167552,1740319832406,-2656.6047086,0.00017234,2]
[354167553,1740319832415,-150.0,0.0001726,2]
[354167554,1740319832425,-1400.0,0.000173,6]
[354167555,1740319832435,-150.0,0.00017316,2]
[354167556,1740319832444,-150.0,0.00017384,2]
[354167557,1740319832454,-159.761967,0.0001739,3]
[354167558,1740319832463,-1241.60734,0.000174,2]
[354167559,1740319832473,-1700.0,0.000174,6]
[354167561,1740319832482,-1393.8836076,0.00017406,2]
[354167563,1740319832492,-219.2921258,0.00017406,2]
[354167565,1740319832501,-2131.3089158,0.00017406,2]
[354167567,1740319832511,-500.0,0.00017418,7]
[354167569,1740319832520,-500.0,0.00017418,7]
[354167572,1740319832529,-500.0,0.00017418,7]
[354167573,1740319832540,-500.0,0.00017418,7]
[354167575,1740319832550,-500.0,0.00017418,7]
[354167578,1740319832560,-500.0,0.00017418,7]
[354167580,1740319832570,-500.0,0.00017418,7]
[354167582,1740319832579,-500.0,0.00017418,7]
[354167584,1740319832588,-500.0,0.00017418,7]
[354167586,1740319832598,-500.0,0.00017418,7]
[354167587,1740319832607,-500.0,0.00017418,7]
[354167588,1740319832616,-500.0,0.00017418,7]
[354167589,1740319832626,-500.0,0.00017418,7]
[354167590,1740319832636,-500.0,0.00017418,7]
[354167591,1740319832645,-500.0,0.00017418,7]
[354167592,1740319832655,-500.0,0.00017418,7]
[354167593,1740319832664,-419.22,0.00017418,7]
[354167594,1740319832673,-500.0,0.00017418,7]
[354167595,1740319832683,-500.0,0.00017418,7]
[354167596,1740319832693,-500.0,0.00017418,7]
[354167597,1740319832703,-500.0,0.00017418,7]
[354167598,1740319832713,-500.0,0.00017418,7]
[354167599,1740319832722,-500.0,0.00017418,7]
[354167600,1740319832732,-500.0,0.00017418,7]
[354167601,1740319832742,-500.0,0.00017418,7]
[354167602,1740319832752,-500.0,0.00017418,7]
[354167603,1740319832761,-500.0,0.00017418,7]
[354167604,1740319832771,-500.0,0.00017418,7]
[354167605,1740319832781,-500.0,0.00017418,7]
[354167606,1740319832792,-500.0,0.00017418,7]
[354167607,1740319832801,-500.0,0.00017418,7]
[354167608,1740319832811,-500.0,0.00017418,7]
[354167609,1740319832820,-500.0,0.00017418,7]
[354167610,1740319832829,-500.0,0.00017418,7]
[354167611,1740319832838,-500.0,0.00017418,7]
[354167612,1740319832848,-500.0,0.00017418,7]
[354167613,1740319832857,-500.0,0.00017418,7]
[354167614,1740319832866,-477.33,0.00017418,7]
[354167615,1740319832879,-500.0,0.00017418,7]
[354167616,1740319832889,-500.0,0.00017418,7]
[354167617,1740319832902,-500.0,0.00017418,7]
[354167618,1740319832911,-500.0,0.00017418,7]
[354167619,1740319832920,-500.0,0.00017418,7]
[354167620,1740319832929,-500.0,0.00017418,7]
[354167621,1740319832939,-500.0,0.00017418,7]
[354167622,1740319832949,-500.0,0.00017418,7]
[354167623,1740319832957,-500.0,0.00017418,7]
[354167624,1740319832970,-500.0,0.00017418,7]
[354167625,1740319832979,-500.0,0.00017418,7]
[354167626,1740319832989,-500.0,0.00017418,7]
[354167627,1740319832998,-500.0,0.00017418,7]
[354167628,1740319833008,-500.0,0.00017418,7]
[354167629,1740319833017,-500.0,0.00017418,7]
[354167630,1740319833028,-500.0,0.00017418,7]
[354167631,1740319833039,-500.0,0.00017418,7]
[354167632,1740319833049,-536.7,0.00017418,7]
[354167633,1740319833059,-150.0,0.00017484,2]
[354167634,1740319833069,-298.59493,0.00017488,7]
[354167635,1740319833079,-300.0,0.000175,6]
[354167636,1740319833090,-150.0,0.00017568,2]
[354167637,1740319833100,-150.0,0.00017568,2]
[354167638,1740319833110,-220.0,0.00017579,2]
[354167639,1740319833119,-300.0,0.000176,6]
[354167640,1740319833132,-150.0,0.00017653,2]
[354167641,1740319833143,-150.0,0.00017671,2]
[354167642,1740319833154,-298.59493,0.00017688,7]
[354167643,1740319833164,-300.0,0.000177,6]
[354167644,1740319833174,-150.0,0.00017753,2]
[354167645,1740319833184,-300.0,0.000178,6]
[354167646,1740319833194,-150.0,0.00017821,2]
[354167647,1740319833204,-507.0,0.00017863,2]
[354167648,1740319833214,-150.0,0.00017877,2]
[354167649,1740319833223,-298.59493,0.00017888,7]
[354167650,1740319833233,-1000.0,0.000179,2]
[354167651,1740319833242,-7696.9604,0.000179,2]
[354167652,1740319833252,-770.0,0.000179,6]
[354167653,1740319833261,-153.0,0.0001798,2]
[354167654,1740319833271,-153.0,0.0001798,2]
[354167655,1740319833280,-153.0,0.0001798,2]
[354167656,1740319833289,-153.0,0.0001798,2]
[354167657,1740319833299,-153.0,0.0001798,2]
[354167658,1740319833308,-153.0,0.0001798,2]
[354167659,1740319833317,-153.0,0.0001798,2]
[354167660,1740319833326,-153.0,0.0001798,2]
[354167661,1740319833337,-1908.36619097,0.00017983,5]
[354167662,1740319833346,-500.0,0.00017988,2]
[354167663,1740319833356,-1349.4455,0.00017988,2]
[354167664,1740319833365,-6728.0142,0.00017988,2]
[354167665,1740319833376,-150.0,0.00017989,2]
[354167666,1740319833386,-523.57062597,0.00017989,2]
[354167667,1740319833396,-200.56199111,0.00017999,2]
[354167668,1740319833406,-500.0,0.00017999,2]
[354167669,1740319833416,-1217.0,0.00017999,2]
[354167670,1740319833426,-5004.3259338,0.00018,4]
[354167671,1740319833436,-20028.98941179,0.00018,14]
[354167672,1740319833446,-1932.0,0.00018,2]
[354167673,1740319833456,-500.0,0.00018026,2]
[354167674,1740319833466,-1217.0,0.00018026,2]
[354167675,1740319833476,-523.57062595,0.00018035,2]
[354167676,1740319833486,-500.0,0.00018054,2]
[354167677,1740319833495,-1217.0,0.00018054,2]
[354167678,1740319833505,-523.57062595,0.0001808,2]
[354167679,1740319833515,-500.0,0.00018081,2]
[354167680,1740319833525,-1217.0,0.00018081,2]
[354167681,1740319833535,-298.59493,0.00018088,7]
[354167682,1740319833544,-10031.29636829,0.00018088,2]
[354167683,1740319833554,-1000.0,0.00018089,2]
[354167684,1740319833564,-2500.0,0.00018089,2]
[354167685,1740319833574,-500.0,0.00018109,2]
[354167686,1740319833583,-1217.0,0.00018109,2]
[354167687,1740319833594,-150.0,0.00018123,2]
[354167688,1740319833603,-523.57062595,0.00018126,2]
[354167689,1740319833613,-242.0,0.00018127,2]
[354167690,1740319833622,-500.0,0.00018136,2]
[354167691,1740319833632,-1217.0,0.00018136,2]
[354167692,1740319833641,-161.00327909,0.0001814,2]
[354167693,1740319833650,-150.0,0.00018157,2]
[354167694,1740319833659,-500.0,0.00018163,2]
[354167695,1740319833668,-1217.0,0.00018163,2]
[354167696,1740319833678,-523.57062595,0.00018172,2]
[354167697,1740319833687,-150.0,0.00018185,2]
[354167698,1740319833696,-43476.20516391,0.00018189,2]
[354167699,1740319833723,-1330.85,0.00018189,2]
[354167702,1740319840238,-1110.0,0.00017041,2]
[354167703,1740319840251,-1143.34144101,0.00017406,2]
[354167722,1740319845792,-105.33601379,0.00017406,2]
[354167723,1740319845802,-149.24377024,0.00017906,2]
[354167725,1740319845814,-3.70622976,0.00017906,2]
[354167727,1740319845823,-156.84866734,0.0001798,2]
[354167728,1740319845832,-2791.82075462,0.00018189,2]
[354167729,1740320167127,1506.0,0.00020348,120]
[354167730,1740320256977,692.0,0.00019,120]
[354167732,1740320583957,11802.41331496,0.00020348,120]
[354167733,1740320584287,11802.41331496,0.00020348,120]
[354167734,1740320584610,11802.41331496,0.00020348,120]
[354167735,1740320584914,11802.41331496,0.00020348,120]
[354167748,1740321032077,-280.35137859,9.99e-05,2]
[354167749,1740321032230,-84.05962141,9.99e-05,2]
[354167750,1740321032239,-9728.72677859,0.0001,2]
[354167751,1740321032309,-1615.45795036,0.0001,2]
[354167758,1740321037994,-521.74533198,0.0001,2]
[354167759,1740321038010,-2922.05184365,0.0001,2]
[354167760,1740321038081,-3767.27899363,0.0001,2]
[354167761,1740321038094,-28330.64718728,0.0001,2]
[354167762,1740321038106,-8775.99133458,0.0001,2]
[354167763,1740321038117,-505.8088078,0.0001,2]
[354167764,1740321038129,-544.38170658,0.0001,2]
[354167765,1740321038154,-464.98176691,0.0001,2]
[354167766,1740321038166,-4312.73493,0.0001,2]
[354167767,1740321038176,-518.9007186,0.0001,2]
[354167768,1740321038189,-11270.90000004,0.0001,2]
[354167965,1740321040160,-3770.39230764,0.0001,2]
[354167967,1740321040173,-3933.36463944,0.0001,2]
[354167969,1740321040184,-1740.09140686,0.0001,2]
[354167971,1740321040195,-1424.0,0.0001,2]
[354167974,1740321040207,-276.91061512,0.0001,2]
[354167995,1740321040408,-1779.42913045,0.0001,2]
[354167998,1740321040420,-1151.54486771,0.0001,2]
[354168006,1740321040494,-460.85805502,0.0001,2]
[354168009,1740321040506,-17361.17363347,0.0001,2]
[354168011,1740321040517,-5802.7092032,0.0001,2]
[354168013,1740321040528,-3979.48707362,0.0001,2]
[354168015,1740321040539,-419.77238971,0.0001,2]
[354168017,1740321040550,-1656.58520388,0.0001,2]
[354168020,1740321040562,-9446.3636837,0.0001,2]
[354168022,1740321040577,-607.64675005,0.0001,2]
[354168026,1740321040599,-146263.57714125,0.0001,2]
[354168028,1740321040610,-295.20786947,0.0001,2]
[354168030,1740321040622,-1438.54768027,0.0001,2]
[354168033,1740321040638,-4857.75707716,0.0001,2]
[354168315,1740321043125,-2346.3526878,0.0001,2]
[354168319,1740321043137,-561.17,0.0001,2]
[354168323,1740321043147,-5595.82016693,0.0001,2]
[354168334,1740321043223,-816.924,0.0001,2]
[354168335,1740321043234,-748.63230573,0.0001,2]
[354168336,1740321043246,-55684.20296421,0.0001,2]
[354168338,1740321043255,-169.318302,0.00010958,2]
[354168340,1740321043265,-160.059688,0.00010958,2]
[354168342,1740321043274,-164.947541,0.00010958,2]
[354168344,1740321043286,-164.48467,0.00010958,2]
[354168346,1740321043295,-1471.09356559,0.00010958,2]
[354168348,1740321043308,-164.48467,0.00011041,2]
[354168350,1740321043317,-261.78531302,0.00011099,2]
[354168352,1740321043327,-169.318302,0.00011123,2]
[354168354,1740321043337,-169.318302,0.00011205,2]
[354168356,1740321043346,-164.48467,0.00011205,2]
[354168357,1740321043355,-164.48467,0.00011287,2]
[354168358,1740321043364,-169.318302,0.00011369,2]
[354168359,1740321043373,-574.62,0.00011411,2]
[354168360,1740321043382,-261.78531297,0.00011696,2]
[354168361,1740321043391,-150.86622136,0.0001185,2]
[354168362,1740321043400,-10488.90102688,0.00011933,2]
[354168363,1740321043410,-167.41657753,0.00012033,2]
[354168364,1740321043420,-156.8486673,0.000123,2]
[354168365,1740321043429,-156.8486673,0.000123,2]
[354168366,1740321043438,-261.78531297,0.00012534,2]
[354168367,1740321043447,-500.0,0.00012555,2]
[354168368,1740321043457,-500.0,0.00012555,2]
[354168369,1740321043467,-500.0,0.00012555,2]
[354168370,1740321043477,-500.0,0.00012555,2]
[354168372,1740321043487,-500.0,0.00012555,2]
[354168373,1740321043496,-467.05695146,0.00012555,2]
[354168374,1740321043505,-500.0,0.00012555,2]
[354168375,1740321043515,-500.0,0.00012555,2]
[354168376,1740321043525,-500.0,0.00012555,2]
[354168377,1740321043534,-500.0,0.00012555,2]
[354168379,1740321043543,-500.0,0.00012555,2]
[354168381,1740321043552,-500.0,0.00012555,2]
[354168383,1740321043562,-500.0,0.00012555,2]
[354168385,1740321043571,-500.0,0.00012555,2]
[354168386,1740321043581,-500.0,0.00012555,2]
[354168388,1740321043590,-500.0,0.00012555,2]
[354168389,1740321043599,-500.0,0.00012555,2]
[354168391,1740321043607,-500.0,0.00012555,2]
[354168393,1740321043617,-500.0,0.00012555,2]
[354168396,1740321043627,-500.0,0.00012555,2]
[354168398,1740321043636,-150.0,0.00012556,2]
[354168399,1740321043645,-10488.90102682,0.00012652,2]
[354168402,1740321043654,-156.8486673,0.00012971,2]
[354168404,1740321043664,-10488.90102682,0.0001337,2]
[354168406,1740321043673,-261.78531297,0.00013372,2]
[354168407,1740321043682,-304.49428724,0.00013599,2]
[354168409,1740321043691,-574.62,0.00013675,2]
[354168412,1740321043701,-4350.43,0.00013699,2]
[354168414,1740321043710,-4350.43,0.00013699,2]
[354168415,1740321043718,-4350.43,0.00013699,2]
[354168417,1740321043727,-4350.43,0.00013699,2]
[354168419,1740321043737,-4350.43,0.00013699,2]
[354168421,1740321043746,-4350.43,0.00013699,2]
[354168424,1740321043755,-4350.43,0.00013699,2]
[354168426,1740321043764,-4350.43,0.00013699,2]
[354168428,1740321043774,-4350.43,0.00013699,2]
[354168430,1740321043783,-4350.43,0.00013699,2]
[354168432,1740321043792,-4350.43,0.00013699,2]
[354168433,1740321043801,-4350.43,0.00013699,2]
[354168435,1740321043811,-4350.43,0.00013699,2]
[354168436,1740321043821,-4350.43,0.00013699,2]
[354168437,1740321043832,-4350.43,0.00013699,2]
[354168438,1740321043841,-4350.43,0.00013699,2]
[354168439,1740321043850,-4350.43,0.00013699,2]
[354168440,1740321043859,-4350.43,0.00013699,2]
[354168441,1740321043868,-4350.43,0.00013699,2]
[354168442,1740321043877,-4350.44083088,0.00013699,2]
[354168443,1740321043887,-156.8486673,0.00014057,2]
[354168444,1740321043896,-10488.90102682,0.00014089,2]
[354168445,1740321043906,-261.78531297,0.0001421,2]
[354168446,1740321043915,-69424.7743024,0.000148,3]
[354168447,1740321043924,-10488.90102682,0.00014807,2]
[354168448,1740321043933,-1000.0,0.00015,2]
[354168449,1740321043943,-261.78531297,0.00015048,2]
[354168451,1740321043952,-156.8486673,0.00015143,2]
[354168453,1740321043961,-200.0,0.00015335,2]
[354168455,1740321043971,-503.03,0.00015344,2]
[354168456,1740321043980,-492.88,0.00015344,2]
[354168458,1740321043990,-508.4,0.00015344,2]
[354168460,1740321043999,-503.21,0.00015344,2]
[354168461,1740321044008,-504.8,0.00015344,2]
[354168462,1740321044017,-490.88,0.00015344,2]
[354168463,1740321044027,-492.49,0.00015344,2]
[354168464,1740321044036,-493.69,0.00015344,2]
[354168465,1740321044045,-507.39,0.00015344,2]
[354168466,1740321044054,-4271.0,0.000154,5]
[354168467,1740321044063,-10488.90102682,0.00015526,2]
[354168468,1740321044073,-151.1,0.00015844,2]
[354168469,1740321044082,-151.99,0.00015844,2]
[354168470,1740321044091,-152.08,0.00015844,2]
[354168471,1740321044101,-152.29,0.00015844,2]
[354168472,1740321044110,-152.78,0.00015844,2]
[354168473,1740321044119,-151.67,0.00015844,2]
[354168474,1740321044128,-8678.0967878,0.00015873,3]
[354168475,1740321044137,-220.0,0.00015883,2]
[354168476,1740321044147,-261.78531297,0.00015886,2]
[354168477,1740321044157,-574.62,0.00015939,2]
[354168478,1740321044166,-156.8486673,0.00016229,2]
[354168479,1740321044176,-10488.90102682,0.00016244,2]
[354168480,1740321044185,-242.0,0.00016431,2]
[354168481,1740321044194,-500.0,0.00016602,2]
[354168482,1740321044204,-184.29,0.00016624,2]
[354168483,1740321044213,-285.33935344,0.00016644,2]
[354168484,1740321044222,-150.0,0.00016644,2]
[354168485,1740321044232,-150.0,0.00016644,2]
[354168486,1740321044241,-150.0,0.00016644,2]
[354168487,1740321044250,-1412.347,0.00016685,2]
[354168488,1740321044259,-246.239,0.00016685,2]
[354168489,1740321044269,-261.78531297,0.00016724,2]
[354168490,1740321044278,-250.0,0.00016808,2]
[354168491,1740321044287,-1158.85,0.00016927,2]
[354168492,1740321044296,-593.70814173,0.00016932,2]
[354168493,1740321044309,-10547.43,0.00016932,2]
[354168494,1740321044318,-10488.90102682,0.00016963,2]
[354168495,1740321044327,-8678.0967878,0.00017,3]
[354168496,1740321044336,-505.181,0.0001701,2]
[354168497,1740321044346,-804.0,0.0001701,2]
[354168498,1740321044356,-3355.0,0.0001701,2]
[354168499,1740321044365,-151.0,0.0001701,2]
[354168500,1740321044375,-150.0,0.0001701,2]
[354168501,1740321044386,-1009.0,0.0001701,2]
[354168502,1740321044395,-1000.0,0.0001701,2]
[354168503,1740321044405,-1000.0,0.0001701,2]
[354168504,1740321044414,-2712.0,0.000171,3]
[354168505,1740321044423,-150.0,0.00017205,2]
[354168506,1740321044432,-258.31,0.0001721,2]
[354168507,1740321044441,-1620.93,0.00017239,2]
[354168508,1740321044451,-1000.0,0.00017243,2]
[354168509,1740321044460,-156.8486673,0.00017314,2]
[354168510,1740321044470,-150.0,0.00017334,2]
[354168511,1740321044479,-8678.0967878,0.00017396,3]